bitfinex/quotes_ETHUSD_20251108
["timestamp","ask_amount","ask_price","bid_price","bid_amount"]
[1762566673334,0.002,3441.8,3441.2,6.09460404]
[1762566673536,0.002,3441.8,3441.2,6.32430679]
[1762566674074,0.002,3441.8,3441.2,6.73128159]
[1762566674268,0.002,3441.8,3441.7,2.90554086]
[1762566674462,0.002,3441.8,3441.7,3.37244086]
[1762566674766,0.002,3441.8,3441.7,5.85806591]
[1762566675148,0.002,3441.8,3441.7,6.26504071]
[1762566675361,0.002,3441.8,3441.7,5.85806591]
[1762566675563,0.4972,3441.8,3441.7,4.31005286]
[1762566675870,0.7589,3441.8,3441.7,3.05034086]
[1762566676664,0.4972,3441.8,3441.7,3.05034086]
[1762566676977,0.002,3441.8,3441.7,3.51724086]
[1762566677285,0.002,3441.8,3441.7,3.37244086]
[1762566677467,0.002,3441.8,3441.7,4.00024811]
[1762566677650,0.002,3441.8,3441.7,3.53334811]
[1762566678054,0.3035,3441.8,3441.7,3.53334811]
[1762566678470,0.7571,3441.8,3441.7,2.90554086]
[1762566679492,0.3035,3441.8,3441.7,2.90554086]
[1762566679698,0.002,3441.8,3441.7,2.90554086]
[1762566680188,0.002,3441.8,3441.7,3.37244086]
[1762566680362,0.002,3441.8,3441.7,4.04528811]
[1762566685799,0.3035,3441.8,3441.7,3.57838811]
[1762566686003,0.3035,3441.8,3441.7,2.90554086]
[1762566686503,0.002,3441.8,3441.7,2.90554086]
[1762566687072,0.002,3441.8,3441.7,3.05034086]
[1762566687272,0.002,3441.8,3441.7,3.51724086]
[1762566687471,0.002,3441.8,3441.7,3.05034086]
[1762566690011,0.002,3441.8,3441.7,4.11283811]
[1762566691000,0.002,3441.8,3441.7,3.64593811]
[1762566691184,0.305,3441.8,3441.7,3.64593811]
[1762566691798,0.002,3441.8,3441.7,3.64593811]
[1762566694482,0.002,3441.8,3441.7,4.13653811]
[1762566694678,0.002,3441.8,3441.7,4.60303811]
[1762566694915,0.2723,3441.8,3441.7,3.64593811]
[1762566695493,0.4569,3441.8,3441.7,3.05034086]
[1762566695707,0.9422,3441.8,3441.7,3.05034086]
[1762566695904,0.002,3441.8,3441.7,3.05034086]
[1762566696485,0.2731,3441.8,3441.7,3.05034086]
[1762566697621,0.002,3441.8,3441.7,3.54094086]
[1762566697807,0.002,3441.8,3441.7,4.9019106]
[1762566699026,0.9421,3441.8,3441.7,3.05034086]
[1762566699448,0.002,3441.8,3441.7,3.54094086]
[1762566699601,0.002,3441.8,3441.7,7.84949735]
[1762566700103,0.002,3441.8,3441.7,9.57570935]
[1762566700829,0.002,3441.8,3441.7,13.62641335]
[1762566701130,0.002,3441.8,3441.7,15.32041499]
[1762566701334,1e-08,3441.9,3441.8,4.57067244]
[1762566701499,1e-08,3441.9,3441.8,5.52417244]
[1762566703133,1e-08,3442.5,3442.4,3.98845403]
[1762566703433,0.005,3443.9,3442.8,3.31011652]
[1762566703600,0.005,3443.9,3442.8,8.50984781]
[1762566703806,0.005,3443.9,3442.8,8.97914781]
[1762566704002,0.4777,3443.6,3442.8,8.50984781]
[1762566704225,0.4777,3443.4,3442.8,8.7480064]
[1762566704502,0.4777,3443.4,3442.8,4.43944991]
[1762566704929,0.4777,3443.4,3442.8,4.90874991]
[1762566706226,0.4777,3443.4,3442.8,6.16846191]
[1762566706427,0.005,3443.9,3442.8,6.57396591]
[1762566706640,1e-08,3442.9,3442.8,6.98094071]
[1762566707169,1e-08,3442.9,3442.8,7.41173529]
[1762566707341,1e-08,3442.9,3442.8,6.98094071]
[1762566707540,1e-08,3442.9,3442.8,6.57396591]
[1762566707855,1e-08,3442.9,3442.8,6.10466591]
[1762566709216,0.00200001,3442.9,3442.8,6.57396591]
[1762566710213,0.00200001,3442.9,3442.8,6.10466591]
[1762566710409,0.47090001,3442.9,3442.8,2.90461252]
[1762566710643,0.94660001,3442.9,3442.8,3.04941252]
[1762566712224,0.47090001,3442.9,3442.8,3.53361252]
[1762566712427,0.00200001,3442.9,3442.8,4.40841652]
[1762566712637,0.00200001,3442.9,3442.8,6.52541199]
[1762566714357,0.00200001,3442.9,3442.8,6.05611199]
[1762566715363,0.00200001,3442.9,3442.8,6.52541199]
[1762566715735,0.00200001,3442.9,3442.8,6.11990799]
[1762566715941,0.00200001,3442.9,3442.8,5.65060799]
[1762566717032,0.00200001,3442.9,3442.8,5.16640799]
[1762566718058,0.47090001,3442.9,3442.8,4.30912452]
[1762566718227,0.94660001,3442.9,3442.8,0.1448]
[1762566718440,0.94660001,3442.9,3442.8,3.04941252]
[1762566718834,0.94660001,3442.9,3442.8,0.1448]
[1762566719065,0.94660001,3442.9,3442.8,3.04941252]
[1762566719239,0.94660001,3442.9,3442.8,0.1448]
[1762566719565,1.33169871,3442.9,3442.5,0.1448]
[1762566719739,0.4777,3442.8,3442.5,0.1448]
[1762566719938,0.2754,3442.6,3442.5,0.1448]
[1762566720151,0.2754,3442.6,3442.2,2.90511172]
[1762566720353,0.4757,3442.5,3442.1,3.04999799]
[1762566720563,0.0048,3442.2,3442.1,0.1448]
[1762566720766,0.0048,3442.2,3442.1,3.05000321]
[1762566720966,0.4825,3442.2,3442.1,3.05000321]
[1762566721169,0.4825,3442.2,3442.1,0.1448]
[1762566721347,0.82125054,3442.2,3441.8,0.1448]
[1762566721543,0.1935,3442.0,3441.8,0.1448]
[1762566721748,0.4492,3441.9,3441.8,3.05025644]
[1762566721980,0.7351,3441.9,3441.8,3.05025644]
[1762566722359,0.7351,3441.9,3441.8,0.1448]
[1762566722686,0.7351,3441.9,3441.8,3.05025644]
[1762566724048,0.4492,3441.9,3441.8,3.05025644]
[1762566724247,0.7351,3441.9,3441.8,3.05025644]
[1762566724858,0.7351,3441.9,3441.8,0.1448]
[1762566725069,0.7351,3441.9,3441.8,3.05025644]
[1762566725584,0.7351,3441.9,3441.8,0.1448]
[1762566725761,0.7351,3441.9,3441.8,3.05025644]
[1762566726791,0.7351,3441.9,3441.8,0.001]
[1762566727086,1.13783474,3441.9,3441.8,0.001]
[1762566727250,0.7351,3441.9,3441.8,0.001]
[1762566728402,3.64047203,3441.9,3441.6,0.001]
[1762566728574,3.17634086,3441.7,3441.6,0.001]
[1762566728966,0.7333,3441.7,3441.6,0.001]
[1762566729214,1.12815576,3441.7,3441.6,0.001]
[1762566729365,4.03369662,3441.7,3441.6,0.001]
[1762566729697,1.12815576,3441.7,3441.6,0.001]
[1762566729873,4.03369662,3441.7,3441.6,0.001]
[1762566730802,0.7333,3441.7,3441.6,0.001]
[1762566731308,0.2708,3441.7,3441.6,2.90662529]
[1762566731660,0.7333,3441.7,3441.6,0.001]
[1762566734804,0.2708,3441.7,3441.6,2.90662529]
[1762566735105,0.1935,3442.2,3441.6,0.9769]
[1762566735307,0.4625,3442.1,3441.6,0.001]
[1762566735532,0.4625,3442.1,3441.8,2.90541043]
[1762566735736,0.4625,3442.1,3441.8,2.9053757]
[1762566736034,0.4662,3441.9,3441.6,0.001]
[1762566736233,0.0027,3441.7,3441.6,0.001]
[1762566736536,0.4672,3441.7,3441.6,0.001]
[1762566736739,0.4672,3441.7,3441.6,2.90662529]
[1762566737819,0.1448,3442.1,3441.8,2.90539369]
[1762566738145,0.2712,3441.7,3441.6,0.001]
[1762566738310,0.2712,3441.7,3441.6,2.90662529]
[1762566738643,0.6093,3442.1,3441.7,2.90551286]
[1762566738825,0.6093,3442.1,3441.6,0.001]
[1762566738826,0.4645,3442.0,3441.6,0.001]
[1762566738998,0.2712,3441.7,3441.6,0.001]
[1762566739442,0.1448,3442.1,3441.7,2.90549496]
[1762566739623,0.4645,3442.0,3441.8,2.90538494]
[1762566739805,0.4645,3442.0,3441.7,2.90554086]
[1762566739806,0.2712,3441.8,3441.7,2.90552215]
[1762566740203,0.2712,3441.8,3441.6,0.001]
[1762566740416,0.4672,3441.7,3441.6,0.001]
[1762566745350,0.8191391,3441.7,3441.6,0.001]
[1762566745861,0.3546391,3441.7,3441.6,2.90662529]
[1762566746036,0.0027,3441.7,3441.6,2.90662529]
[1762566746778,0.0027,3441.7,3441.6,0.001]
[1762566746928,0.0027,3441.7,3441.6,2.90662529]
[1762566747262,0.002,3441.8,3441.7,2.90554086]
[1762566747464,0.002,3441.8,3441.6,0.001]
[1762566747465,0.7337,3441.7,3441.6,0.001]
[1762566750186,0.2712,3441.7,3441.6,0.001]
[1762566750353,0.2712,3441.7,3441.6,2.90662529]
[1762566750763,0.7337,3441.7,3441.6,0.001]
[1762566752586,0.2712,3441.7,3441.6,0.001]
[1762566755378,0.2712,3441.7,3441.6,2.90662529]
[1762566756496,0.002,3441.8,3441.6,2.90662529]
[1762566756497,0.002,3441.8,3441.7,2.90554086]
[1762566756699,0.002,3441.8,3441.7,3.39829626]
[1762566758171,0.002,3441.8,3441.7,4.33793234]
[1762566758519,0.002,3441.8,3441.6,0.001]
[1762566758520,0.2624,3441.8,3441.6,0.001]
[1762566758805,0.2625,3441.7,3441.6,0.001]
[1762566761220,0.731,3441.7,3441.6,0.001]
[1762566762024,3.63654086,3441.7,3441.6,0.001]
[1762566762327,1.40501926,3441.7,3441.6,0.001]
[1762566762821,4.31056012,3441.7,3441.6,0.001]
[1762566764783,0.002,3441.8,3441.6,3.38982529]
[1762566764988,0.002,3441.8,3441.7,7.89867279]
[1762566766344,0.002,3441.8,3441.7,4.24811566]
[1762566766525,0.002,3441.8,3441.7,4.39291566]
[1762566767346,0.002,3441.8,3441.7,5.12174815]
[1762566771238,0.002,3441.8,3441.7,4.66934815]
[1762566777752,0.002,3441.8,3441.7,5.12174815]
[1762566779583,0.2913,3441.8,3441.7,4.18614815]
[1762566779786,0.002,3441.8,3441.7,4.66934815]
[1762566780179,0.002,3441.8,3441.7,5.12174815]
[1762566780986,0.002,3441.8,3441.7,4.66934815]
[1762566781296,0.002,3441.8,3441.7,6.41051555]
[1762566781601,0.002,3441.8,3441.7,7.19393895]
[1762566781759,0.002,3441.8,3441.7,7.62473353]
[1762566781961,0.002,3442.5,3442.4,3.31045403]
[1762566782285,0.002,3442.5,3442.4,9.33572261]
[1762566782483,0.002,3442.5,3442.4,9.95722261]
[1762566785003,0.002,3442.5,3442.4,10.36272661]
[1762566786962,0.002,3442.5,3442.4,9.95722261]
[1762566793532,0.002,3442.5,3442.4,9.48052261]
[1762566793909,0.2899,3442.5,3442.4,8.99732261]
[1762566794319,0.002,3442.5,3442.4,9.47262261]
[1762566794691,0.002,3442.5,3442.4,9.94932261]
[1762566796828,0.002,3442.5,3442.4,4.68882743]
[1762566797221,0.002,3442.5,3442.4,5.16412743]
[1762566801935,0.002,3442.5,3442.4,5.64082743]
[1762566802435,0.002,3442.5,3442.4,5.16412743]
[1762566802804,0.7739,3442.5,3442.4,3.04975003]
[1762566803217,0.7739,3442.5,3442.4,0.1448]
[1762566804167,0.7739,3442.5,3442.1,3.05095482]
[1762566804341,0.0028,3442.2,3442.1,3.05095482]
[1762566804665,0.0028,3442.2,3442.1,0.001]
[1762566804823,0.4868,3442.2,3442.1,0.001]
[1762566806062,0.0028,3442.2,3442.1,0.001]
[1762566806239,0.4868,3442.2,3442.1,2.90620321]
[1762566806556,0.4868,3442.2,3442.1,0.001]
[1762566810345,0.4868,3442.2,3442.1,2.90620321]
[1762566811255,0.4868,3442.2,3442.1,0.001]
[1762566811909,0.84064729,3442.2,3442.1,0.001]
[1762566812060,0.4868,3442.2,3442.1,0.001]
[1762566814169,0.0028,3442.2,3442.1,0.001]
[1762566814365,0.1448,3442.3,3442.1,2.90620321]
[1762566814572,0.1448,3442.3,3442.2,2.90511881]
[1762566814758,0.4531,3442.3,3442.2,2.90511881]
[1762566815188,0.3083,3442.3,3442.2,2.90511881]
[1762566815394,0.002,3442.5,3442.2,2.90511501]
[1762566815692,0.4654,3442.5,3442.4,2.90495003]
[1762566816070,0.7737,3442.5,3442.3,2.90499403]
[1762566816388,0.4654,3442.5,3442.2,2.90508077]
[1762566816592,0.4634,3442.4,3442.2,2.90508077]
[1762566816772,0.3083,3442.3,3442.2,2.90508077]
[1762566817090,0.3083,3442.3,3442.1,3.05099405]
[1762566817271,0.4665,3442.2,3442.1,0.1458]
[1762566817681,0.4665,3442.2,3442.1,3.05100321]
[1762566817982,0.4654,3442.5,3442.3,2.90496435]
[1762566818361,0.3083,3442.4,3442.3,2.90496435]
[1762566819460,0.002,3442.5,3442.4,2.90495003]
[1762566819655,0.002,3442.5,3442.3,2.90499364]
[1762566819959,0.3083,3442.4,3442.1,3.05097324]
[1762566820155,0.0031,3442.2,3442.1,3.05097324]
[1762566820477,0.0031,3442.2,3442.1,0.1458]
[1762566820789,0.4665,3442.2,3442.1,0.1458]
[1762566821483,0.4665,3442.2,3442.1,3.05100321]
[1762566822283,0.4665,3442.2,3442.1,0.1458]
[1762566822485,0.4665,3442.2,3442.1,3.05100321]
[1762566822692,0.4665,3442.2,3442.1,0.1458]
[1762566822893,0.4665,3442.2,3442.1,3.05100321]
[1762566823099,0.4665,3442.2,3442.1,0.1458]
[1762566823100,0.0031,3442.2,3442.1,0.1458]
[1762566823260,0.4648,3442.2,3442.1,0.001]
[1762566823462,0.8164624,3442.2,3442.1,0.001]
[1762566824667,3.72158121,3442.2,3442.1,0.001]
[1762566827510,0.8164624,3442.2,3442.1,0.001]
[1762566827711,0.4648,3442.2,3442.1,0.001]
[1762566828676,3.36991881,3442.2,3442.1,0.001]
[1762566831224,0.4648,3442.2,3442.1,0.001]
[1762566833284,3.36991881,3442.2,3442.1,0.001]
[1762566833691,3.35644955,3442.2,3442.1,0.001]
[1762566833885,4.35636772,3442.2,3442.1,0.001]
[1762566834587,5.03936772,3442.2,3442.1,0.001]
[1762566836624,2.13424891,3442.2,3442.1,0.001]
[1762566837032,5.03936772,3442.2,3442.1,0.001]
[1762566837325,0.3069,3442.2,3442.1,0.001]
[1762566839402,0.4517,3442.2,3442.1,0.001]
[1762566840533,3.79321881,3442.2,3442.1,0.001]
[1762566840707,4.47621881,3442.2,3442.1,0.001]
[1762566841477,10.05351919,3442.2,3442.1,0.001]
[1762566841615,11.36139993,3442.2,3442.1,0.001]
[1762566842430,4.57058803,3441.9,3441.8,0.001]
[1762566842620,9.50027241,3441.9,3441.8,0.001]
[1762566842971,5.90528803,3441.9,3441.8,0.001]
[1762566843177,5.90528803,3441.9,3441.5,0.001]
[1762566843178,1.259712,3441.7,3441.5,0.001]
[1762566843454,4.57101015,3441.4,3440.4,0.001]
[1762566843631,4.84521015,3441.4,3440.4,0.001]
[1762566843832,5.30711015,3441.4,3440.4,0.001]
[1762566844717,5.42347767,3441.4,3440.4,0.001]
[1762566844918,6.73038485,3441.4,3440.4,0.001]
[1762566849760,4.57109459,3441.3,3440.4,0.001]
[1762566849967,5.72389459,3441.3,3440.4,0.001]
[1762566850174,0.405504,3441.0,3440.4,0.001]
[1762566850382,9.92624906,3441.0,3440.4,0.001]
[1762566850522,5.49113239,3440.9,3440.4,0.001]
[1762566850721,5.60752734,3440.9,3440.4,0.001]
[1762566851138,6.29052734,3440.9,3440.4,0.001]
[1762566851371,5.60752734,3440.9,3440.4,0.001]
[1762566851524,7.60880278,3440.9,3440.4,0.001]
[1762566853255,7.60880278,3440.9,3440.6,0.001]
[1762566857025,6.92580278,3440.9,3440.6,0.001]
[1762566857225,7.60880278,3440.9,3440.6,0.001]
[1762566860266,10.67280278,3440.9,3440.6,0.001]
[1762566860563,7.60880278,3440.9,3440.6,0.001]
[1762566870292,7.61080278,3440.9,3440.6,0.001]
[1762566870663,7.61080278,3440.9,3440.4,1e-08]
[1762566870664,8.62865465,3440.5,3440.4,1e-08]
[1762566870886,9.58135465,3440.5,3440.4,1e-08]
[1762566871077,10.04325465,3440.5,3440.4,1e-08]
[1762566871600,10.15966417,3440.5,3440.4,1e-08]
[1762566877110,4.28267579,3440.5,3440.4,0.49190001]
[1762566877405,4.28267579,3440.5,3440.4,1e-08]
[1762566877406,5.22217579,3440.5,3440.4,1e-08]
[1762566877612,4.96567579,3440.5,3440.4,0.49190001]
[1762566877971,5.37117979,3440.5,3440.4,0.49190001]
[1762566880218,6.60730464,3440.5,3440.4,1e-08]
[1762566880794,6.35080464,3440.5,3440.4,1e-08]
[1762566881637,6.60950464,3440.5,3440.4,1e-08]
[1762566881808,6.35080464,3440.5,3440.4,0.48180001]
[1762566882541,6.61220464,3440.5,3440.4,1e-08]
[1762566882834,5.37117979,3440.5,3440.4,0.48180001]
[1762566883293,5.37117979,3440.5,3440.4,0.94930001]
[1762566886123,4.28267579,3440.5,3440.4,0.94930001]
[1762566886452,0.683,3440.6,3440.4,0.94930001]
[1762566886649,3.5894356,3440.7,3440.5,0.4675]
[1762566886805,1.259712,3440.6,3440.5,0.4675]
[1762566887243,1.259712,3440.6,3440.5,0.9493]
[1762566887611,2.9064698,3440.6,3440.5,0.9493]
[1762566888732,1.259712,3440.6,3440.5,0.9493]
[1762566888902,4.1661818,3440.6,3440.5,0.9493]
[1762566889430,1.259712,3440.6,3440.5,0.9493]
[1762566890000,4.1661818,3440.6,3440.5,0.9493]
[1762566890201,1.259712,3440.6,3440.5,0.9493]
[1762566890448,0.002,3440.9,3440.5,0.9493]
[1762566890615,0.1448,3440.8,3440.6,0.4675]
[1762566891108,0.1448,3440.8,3440.7,0.4818]
[1762566891502,0.1448,3440.8,3440.7,0.9493]
[1762566891941,0.002,3440.9,3440.7,0.9493]
[1762566892138,0.002,3440.9,3440.8,0.9493]
[1762566895632,2.90821639,3440.9,3440.8,0.9493]
[1762566896532,0.002,3440.9,3440.8,0.9493]
[1762566900447,0.002,3440.9,3440.8,4.24117395]
[1762566900739,0.002,3440.9,3440.8,0.9493]
[1762566901131,0.002,3441.2,3440.8,3.88466386]
[1762566901331,0.002,3441.4,3441.3,2.90587859]
[1762566901558,0.002,3441.4,3441.3,3.38767859]
[1762566901727,0.002,3441.4,3441.3,3.88423737]
[1762566902258,0.002,3441.4,3441.3,4.98402002]
[1762566902624,0.002,3441.4,3441.3,5.12882002]
[1762566903038,0.002,3441.4,3441.3,2.22294143]
[1762566903237,0.002,3441.4,3441.3,5.12882002]
[1762566905162,0.002,3441.4,3441.3,0.4818]
[1762566905459,2.90631544,3440.8,3440.5,0.4645]
[1762566906160,2.9064698,3440.6,3440.4,1e-08]
[1762566906458,2.90655427,3440.5,3440.4,1e-08]
[1762566906659,3.66845427,3440.5,3440.4,1e-08]
[1762566906865,6.05946268,3440.5,3440.4,1e-08]
[1762566907267,5.59676268,3440.5,3440.4,1e-08]
[1762566908376,5.19125868,3440.5,3440.4,1e-08]
[1762566908741,5.65395868,3440.5,3440.4,1e-08]
[1762566909130,6.05946268,3440.5,3440.4,1e-08]
[1762566911435,5.59676268,3440.5,3440.4,1e-08]
[1762566911662,6.05946268,3440.5,3440.4,1e-08]
[1762566912787,5.59676268,3440.5,3440.4,1e-08]
[1762566912983,6.27976268,3440.5,3440.4,1e-08]
[1762566913643,4.84926627,3440.5,3440.4,0.45240001]
[1762566914182,5.14846627,3440.5,3440.4,1e-08]
[1762566914384,6.01667027,3440.5,3440.4,1e-08]
[1762566914534,4.57210824,3440.1,3440.0,0.001]
[1762566914735,4.5725308,3439.6,3439.1,0.005]
[1762566914936,10.05254472,3439.6,3439.1,0.005]
[1762566915153,11.36673122,3439.6,3439.1,0.005]
[1762566915379,11.36673122,3439.6,3438.2,0.001]
[1762566915380,3.31332604,3439.0,3438.2,0.001]
[1762566915564,5.74303804,3439.0,3438.2,0.001]
[1762566921679,3.59006429,3438.6,3438.5,1e-08]
[1762566921885,6.64993198,3438.6,3438.5,1e-08]
[1762566922046,7.11433198,3438.6,3438.5,1e-08]
[1762566922247,7.23079675,3438.6,3438.5,1e-08]
[1762566922447,2.90934481,3437.2,3437.1,0.005]
[1762566922647,0.405504,3437.7,3437.1,0.005]
[1762566922878,3.20624481,3437.2,3437.1,0.005]
[1762566923058,3.88924481,3437.2,3437.1,0.005]
[1762566923469,0.683,3437.2,3437.1,1.1193]
[1762566924083,0.4645,3437.6,3437.1,1.1193]
[1762566924273,3.59215916,3437.5,3437.2,0.9169]
[1762566924580,3.59211131,3437.5,3437.2,0.9169]
[1762566924946,3.59211131,3437.5,3437.4,0.4524]
[1762566925784,0.87360023,3437.8,3437.4,0.9169]
[1762566925986,0.683,3437.5,3437.4,0.4645]
[1762566926204,0.1448,3437.4,3437.1,0.2024]
[1762566926496,0.683,3437.5,3437.4,0.4524]
[1762566926854,3.5920909,3437.5,3437.4,0.9169]
[1762566927287,0.683,3437.5,3437.4,0.9169]
[1762566928506,0.4645,3438.0,3437.4,0.9169]
[1762566928647,0.1448,3438.0,3437.9,0.4524]
[1762566929000,0.1448,3437.6,3437.2,0.4645]
[1762566929181,0.1448,3437.4,3437.2,0.4645]
[1762566929481,0.1448,3437.4,3437.1,0.2024]
[1762566929482,0.684,3437.7,3437.1,0.2024]
[1762566929681,2.90934481,3437.2,3437.1,0.005]
[1762566929884,3.89024481,3437.2,3437.1,0.005]
[1762566930389,3.59334481,3437.2,3437.1,0.005]
[1762566930588,3.59334481,3437.2,3437.1,0.4574]
[1762566932584,3.89184481,3437.2,3437.1,0.005]
[1762566933280,4.57195451,3437.2,3437.1,0.005]
[1762566933608,6.68737051,3437.2,3437.1,0.005]
[1762566933809,3.3278257,3437.2,3437.1,0.005]
[1762566934104,2.349216,3437.2,3437.1,0.9385]
[1762566934400,5.25856081,3437.2,3437.1,0.46]
[1762566934607,1.943712,3437.2,3437.1,0.46]
[1762566935305,4.85305681,3437.2,3437.1,0.46]
[1762566935509,5.6292909,3437.2,3437.1,0.46]
[1762566935709,3.31569549,3436.2,3435.3,0.4785]
[1762566936009,5.77721374,3436.2,3436.1,1e-08]
[1762566936313,5.79790749,3436.2,3436.1,1e-08]
[1762566936602,5.98920749,3436.2,3436.1,1e-08]
[1762566936970,5.79990749,3436.2,3436.1,1e-08]
[1762566937314,6.68577819,3436.2,3436.1,1e-08]
[1762566942541,6.87707819,3436.2,3436.1,1e-08]
[1762566946857,6.68577819,3436.2,3436.1,1e-08]
[1762566948407,7.34917819,3436.2,3436.1,1e-08]
[1762566949434,3.31654265,3435.2,3435.1,0.005]
[1762566949644,6.25710383,3435.2,3435.1,0.005]
[1762566949946,5.88500383,3435.2,3435.1,0.4566]
[1762566950346,4.57625465,3435.2,3435.1,1.1161]
[1762566950513,5.26225465,3435.2,3435.1,1.1161]
[1762566950709,5.26225465,3435.2,3435.1,0.644]
[1762566952243,5.26225465,3435.2,3435.1,1.1161]
[1762566952745,2.351216,3435.2,3435.1,1.1161]
[1762566953041,5.26225465,3435.2,3435.1,1.1161]
[1762566956375,4.85575065,3435.2,3435.1,1.1171]
[1762566957353,1.944712,3435.2,3435.1,1.1171]
[1762566957671,4.85575065,3435.2,3435.1,1.1171]
[1762566957871,1.944712,3435.2,3435.1,1.1171]
[1762566958834,4.85575065,3435.2,3435.1,1.1171]
[1762566959232,4.85575065,3435.2,3434.4,2.91270182]
[1762566959233,2.91154719,3434.6,3434.4,0.001]
[1762566959460,2.350216,3434.5,3434.4,0.001]
[1762566959660,5.7900218,3434.5,3434.4,0.001]
[1762566959863,5.26384796,3434.5,3434.4,0.9247]
[1762566960061,4.57684796,3434.5,3434.4,0.4526]
[1762566960265,5.26384796,3434.5,3434.4,0.4526]
[1762566960668,4.57684796,3434.5,3434.4,0.4526]
[1762566960855,1.946712,3434.5,3434.4,0.9247]
[1762566961054,4.85834396,3434.5,3434.4,0.9247]
[1762566961604,1.946712,3434.5,3434.4,0.9247]
[1762566961993,5.45851916,3434.5,3434.4,0.4526]
[1762566962183,5.45851916,3434.5,3434.4,0.001]
[1762566962384,5.45851916,3434.5,3434.4,0.4974]
[1762566965301,5.45851916,3434.5,3434.4,0.9666]
[1762566965302,1.946712,3434.5,3434.4,0.9666]
[1762566965502,4.17134396,3434.5,3434.4,0.9666]
[1762566965710,4.85834396,3434.5,3434.4,0.9666]
[1762566969528,5.26384796,3434.5,3434.4,0.001]
[1762566969679,6.49862876,3434.5,3434.4,0.001]
[1762566970218,6.98082876,3434.5,3434.4,0.001]
[1762566976429,6.49862876,3434.5,3434.4,0.001]
[1762566976633,6.04082876,3434.5,3434.4,0.4974]
[1762566977088,5.35382876,3434.5,3434.4,0.4974]
[1762566977418,6.03982876,3434.5,3434.4,0.4974]
[1762566979221,6.03982876,3434.5,3434.4,0.001]
[1762566979423,6.49762876,3434.5,3434.4,0.001]
[1762566980321,10.11620518,3434.5,3434.4,0.001]
[1762566980493,10.11620518,3434.5,3434.4,0.4974]
[1762566980889,10.11620518,3434.5,3434.4,0.001]
[1762566981523,10.11620518,3434.5,3434.4,0.4974]
[1762566983228,10.57400518,3434.5,3434.4,0.001]
[1762566983724,10.11620518,3434.5,3434.4,0.001]
[1762566984814,10.57400518,3434.5,3434.4,0.001]
[1762566986345,10.11620518,3434.5,3434.4,0.4974]
[1762566986928,2.91154456,3434.7,3434.4,0.9666]
[1762566987113,2.91146242,3434.7,3434.6,0.4964]
[1762566987320,3.59646242,3434.7,3434.6,0.4964]
[1762566987536,0.685,3434.7,3434.6,0.9656]
[1762566987948,0.002,3435.1,3434.6,0.9656]
[1762566988145,0.1468,3435.1,3435.0,0.4964]
[1762566988617,0.1468,3435.1,3435.0,0.9656]
[1762566989248,0.1468,3435.1,3435.0,4.26450554]
[1762566989453,0.1468,3435.1,3435.0,1.35329739]
[1762566990540,0.1468,3435.1,3435.0,4.26450554]
[1762566990853,0.002,3435.1,3435.0,4.26450554]
[1762566991053,0.002,3435.1,3435.0,4.40930554]
[1762566992757,0.005,3436.9,3435.7,0.6492]
[1762566992963,0.005,3436.9,3436.7,0.794]
[1762566993121,0.005,3436.9,3436.8,0.9592]
[1762566993855,0.005,3436.9,3436.8,3.86888342]
[1762566994362,0.005,3436.9,3436.8,0.9592]
[1762566995034,0.005,3436.9,3436.8,3.86888342]
[1762566995762,0.005,3436.9,3436.8,0.9592]
[1762566996161,0.005,3436.9,3436.8,3.86888342]
[1762566996331,0.005,3436.9,3436.8,4.28830176]
[1762566996730,0.005,3436.9,3436.8,1.37861834]
[1762566997641,0.005,3436.9,3436.8,4.28830176]
[1762567000862,0.005,3436.9,3436.8,4.43310176]
[1762567007290,0.005,3436.9,3436.3,3.39109459]
[1762567007488,0.005,3436.9,3436.5,2.90991995]
[1762567007674,0.005,3436.9,3436.8,0.4569]
[1762567007879,0.005,3436.9,3436.8,0.9379]
[1762567008653,0.005,3436.9,3436.8,0.9389]
[1762567009158,0.007,3436.9,3436.8,0.9389]
[1762567009559,0.007,3436.9,3436.8,3.84858342]
[1762567010396,0.007,3436.9,3436.8,0.9389]
[1762567011261,0.007,3436.9,3436.8,3.84858342]
[1762567012301,0.007,3436.9,3436.8,0.4579]
[1762567013093,0.007,3436.9,3436.8,3.84858342]
[1762567013262,0.007,3436.9,3436.8,0.9389]
[1762567014089,3.40489876,3436.9,3436.8,0.001]
[1762567014287,5.25037354,3436.9,3436.8,0.001]
[1762567015500,6.51008554,3436.9,3436.8,0.001]
[1762567017740,7.20208554,3436.9,3436.8,0.001]
[1762567018213,6.51008554,3436.9,3436.8,0.001]
[1762567018373,7.20208554,3436.9,3436.8,0.001]
[1762567020206,7.20108554,3436.9,3436.8,0.001]
[1762567021007,6.51008554,3436.9,3436.8,0.001]
[1762567021307,7.20108554,3436.9,3436.8,0.001]
[1762567025121,6.70578554,3436.9,3436.8,0.001]
[1762567025332,7.20498554,3436.9,3436.8,0.001]
[1762567026982,6.51398554,3436.9,3436.8,0.001]
[1762567027322,7.20498554,3436.9,3436.8,0.001]
[1762567028684,6.70578554,3436.9,3436.8,0.001]
[1762567028893,7.20498554,3436.9,3436.8,0.001]
[1762567029688,7.35700537,3436.9,3436.8,0.001]
[1762567029894,4.57515343,3436.5,3436.4,0.001]
[1762567030122,6.456773,3436.5,3436.4,0.001]
[1762567030287,6.955973,3436.5,3436.4,0.001]
[1762567031008,6.264973,3436.5,3436.4,0.001]
[1762567031405,6.955973,3436.5,3436.4,0.001]
[1762567036890,6.954973,3436.5,3436.4,0.001]
[1762567037796,6.264973,3436.5,3436.4,0.001]
[1762567037991,6.954973,3436.5,3436.4,0.001]